[Event "Late-Titled-Tuesday-Blitz-April-30-2024"]
[Site "Chess.com"]
[Date "2024.04.30"]
[Round "9"]
[White "zverr1"]
[Black "KebabJangles"]
[Result "1/2-1/2"]
[WhiteElo "2471"]
[BlackElo "2335"]
[TimeControl "180+1"]
[EndTime "15:44:25 PDT"]
[Termination "Game drawn by stalemate"]

1. d4 {[%clk 0:03:00.9]} 1... Nf6 {[%clk 0:02:53.7]} 2. c4 {[%clk 0:03:00.8]}
2... g6 {[%clk 0:02:53.4]} 3. Nc3 {[%clk 0:03:01.1]} 3... Bg7 {[%clk 0:02:52.6]}
4. e4 {[%clk 0:03:01.1]} 4... d6 {[%clk 0:02:50.6]} 5. Nge2 {[%clk 0:03:01.1]}
5... O-O {[%clk 0:02:49.1]} 6. Ng3 {[%clk 0:03:01.6]} 6... h5 {[%clk 0:02:40.4]}
7. h4 {[%clk 0:02:56.9]} 7... Nc6 {[%clk 0:02:30.1]} 8. d5 {[%clk 0:02:49.1]}
8... Ne5 {[%clk 0:02:28.8]} 9. Be2 {[%clk 0:02:49.1]} 9... c6 {[%clk 0:02:28.5]}
10. Be3 {[%clk 0:02:46.4]} 10... cxd5 {[%clk 0:02:26.8]} 11. cxd5 {[%clk
0:02:47.3]} 11... a6 {[%clk 0:02:24.8]} 12. Rc1 {[%clk 0:02:45.3]} 12... b5
{[%clk 0:02:24.5]} 13. O-O {[%clk 0:02:44.3]} 13... Bd7 {[%clk 0:02:21.4]} 14.
f3 {[%clk 0:02:42.9]} 14... Rc8 {[%clk 0:02:16]} 15. b3 {[%clk 0:02:29.9]} 15...
Qa5 {[%clk 0:02:14.3]} 16. Qd2 {[%clk 0:02:25.5]} 16... Rfd8 {[%clk 0:02:07.8]}
17. Nb1 {[%clk 0:02:24.3]} 17... Qxd2 {[%clk 0:02:06]} 18. Bxd2 {[%clk
0:02:18.7]} 18... e6 {[%clk 0:02:03.1]} 19. dxe6 {[%clk 0:02:10.3]} 19... Bxe6
{[%clk 0:02:04]} 20. Ba5 {[%clk 0:02:10.4]} 20... Re8 {[%clk 0:02:01]} 21. Nc3
{[%clk 0:02:02.4]} 21... Nc6 {[%clk 0:01:59.5]} 22. Bb6 {[%clk 0:01:58.1]} 22...
d5 {[%clk 0:01:58.6]} 23. Bd3 {[%clk 0:01:42.6]} 23... d4 {[%clk 0:01:50.4]} 24.
Nce2 {[%clk 0:01:41.2]} 24... Nd7 {[%clk 0:01:50.4]} 25. Bc5 {[%clk 0:01:34.3]}
25... Nce5 {[%clk 0:01:40.5]} 26. Bxd4 {[%clk 0:01:33.6]} 26... Nxd3 {[%clk
0:01:38.9]} 27. Rxc8 {[%clk 0:01:34.5]} 27... Rxc8 {[%clk 0:01:36.2]} 28. Rd1
{[%clk 0:01:33.7]} 28... N3c5 {[%clk 0:01:32.5]} 29. Bxg7 {[%clk 0:01:31.5]}
29... Kxg7 {[%clk 0:01:33.4]} 30. f4 {[%clk 0:01:31.5]} 30... Bg4 {[%clk
0:01:31.4]} 31. e5 {[%clk 0:01:26.5]} 31... Nf8 {[%clk 0:01:24.1]} 32. Rd6
{[%clk 0:01:24.3]} 32... Nfe6 {[%clk 0:01:23.5]} 33. Nd4 {[%clk 0:01:09.7]}
33... Nxd4 {[%clk 0:01:21.4]} 34. Rxd4 {[%clk 0:01:10.6]} 34... Ne6 {[%clk
0:01:21.7]} 35. Rb4 {[%clk 0:01:01.1]} 35... Rc1+ {[%clk 0:01:19.3]} 36. Kh2
{[%clk 0:01:00.5]} 36... Rc2 {[%clk 0:01:19]} 37. a4 {[%clk 0:00:59.6]} 37...
bxa4 {[%clk 0:01:18.9]} 38. Rxa4 {[%clk 0:00:59.9]} 38... Bf3 {[%clk 0:01:16.1]}
39. f5 {[%clk 0:01:00]} 39... Rxg2+ {[%clk 0:01:15.6]} 40. Kh3 {[%clk
0:01:00.7]} 40... g5 {[%clk 0:01:06]} 41. Nxh5+ {[%clk 0:00:57]} 41... Kh6
{[%clk 0:01:01.2]} 42. fxe6 {[%clk 0:00:50.7]} 42... g4+ {[%clk 0:00:39.6]} 43.
Rxg4 {[%clk 0:00:51.1]} 43... Bxg4+ {[%clk 0:00:16.1]} 44. Kxg2 {[%clk
0:00:51.3]} 44... Bxh5 {[%clk 0:00:16.5]} 45. e7 {[%clk 0:00:49.2]} 45... f5
{[%clk 0:00:16.4]} 46. exf6 {[%clk 0:00:50.1]} 46... Be8 {[%clk 0:00:14.4]} 47.
Kf3 {[%clk 0:00:42.4]} 47... Kg6 {[%clk 0:00:13.8]} 48. h5+ {[%clk 0:00:38.9]}
48... Kxh5 {[%clk 0:00:12.1]} 49. Kf4 {[%clk 0:00:39.2]} 49... Kg6 {[%clk
0:00:11.5]} 50. Ke5 {[%clk 0:00:39.9]} 50... Kf7 {[%clk 0:00:11.6]} 51. b4
{[%clk 0:00:40.4]} 51... Bb5 {[%clk 0:00:10.3]} 52. Kf5 {[%clk 0:00:40.2]} 52...
Bd7+ {[%clk 0:00:10.2]} 53. Ke5 {[%clk 0:00:40.7]} 53... Bb5 {[%clk 0:00:08.2]}
54. Ke4 {[%clk 0:00:40.6]} 54... Kxf6 {[%clk 0:00:07.9]} 55. Kd4 {[%clk
0:00:36.1]} 55... Kxe7 {[%clk 0:00:07.8]} 56. Kc3 {[%clk 0:00:36]} 56... Ke6
{[%clk 0:00:08]} 57. Kb3 {[%clk 0:00:36.9]} 57... Kd5 {[%clk 0:00:08.5]} 58. Kc3
{[%clk 0:00:37.8]} 58... Ke4 {[%clk 0:00:08.6]} 59. Kd2 {[%clk 0:00:38]} 59...
Kd4 {[%clk 0:00:09]} 60. Kc2 {[%clk 0:00:38.9]} 60... Kc4 {[%clk 0:00:09.5]} 61.
Kb2 {[%clk 0:00:39.5]} 61... Kxb4 {[%clk 0:00:10]} 62. Ka1 {[%clk 0:00:40.2]}
62... Kb3 {[%clk 0:00:10.3]} 63. Kb1 {[%clk 0:00:41.1]} 63... a5 {[%clk
0:00:10.2]} 64. Ka1 {[%clk 0:00:42]} 64... a4 {[%clk 0:00:10.8]} 65. Kb1 {[%clk
0:00:42.9]} 65... a3 {[%clk 0:00:11.6]} 66. Ka1 {[%clk 0:00:43.8]} 66... Ba4
{[%clk 0:00:11.9]} 67. Kb1 {[%clk 0:00:44.2]} 67... a2+ {[%clk 0:00:11.3]} 68.
Ka1 {[%clk 0:00:45.1]} 68... Ka3 {[%clk 0:00:10.5]} 1/2-1/2

[Event "Late-Titled-Tuesday-Blitz-April-30-2024"]
[Site "Chess.com"]
[Date "2024.04.30"]
[Round "9"]
[White "Statham_01"]
[Black "GMKrikor"]
[Result "1-0"]
[WhiteElo "2646"]
[BlackElo "2881"]
[TimeControl "180+1"]
[EndTime "15:44:26 PDT"]
[Termination "Statham_01 won on time"]

1. e4 {[%clk 0:03:00.9]} 1... c5 {[%clk 0:02:59.9]} 2. a3 {[%clk 0:03:00.5]}
2... g6 {[%clk 0:02:56.2]} 3. Nf3 {[%clk 0:03:00.9]} 3... Bg7 {[%clk 0:02:49.7]}
4. c3 {[%clk 0:03:01.1]} 4... Nf6 {[%clk 0:02:48.4]} 5. e5 {[%clk 0:03:01.3]}
5... Nd5 {[%clk 0:02:48.7]} 6. d4 {[%clk 0:03:02.2]} 6... cxd4 {[%clk
0:02:47.2]} 7. Qxd4 {[%clk 0:03:03.1]} 7... Nc7 {[%clk 0:02:37.3]} 8. Qh4 {[%clk
0:03:02.9]} 8... Nc6 {[%clk 0:02:36.7]} 9. Bh6 {[%clk 0:03:01.6]} 9... Bxh6
{[%clk 0:02:33.2]} 10. Qxh6 {[%clk 0:03:02.5]} 10... Ne6 {[%clk 0:02:33.4]} 11.
Nbd2 {[%clk 0:02:56.7]} 11... Qc7 {[%clk 0:02:33.5]} 12. Qe3 {[%clk 0:02:13.5]}
12... O-O {[%clk 0:02:27.9]} 13. O-O-O {[%clk 0:02:10]} 13... d6 {[%clk
0:02:14.6]} 14. h4 {[%clk 0:01:56.5]} 14... Nxe5 {[%clk 0:02:05.4]} 15. Nxe5
{[%clk 0:01:51.6]} 15... dxe5 {[%clk 0:02:04.7]} 16. h5 {[%clk 0:01:22.8]} 16...
g5 {[%clk 0:01:59.6]} 17. Nf3 {[%clk 0:01:13.1]} 17... f6 {[%clk 0:01:57.7]} 18.
Bd3 {[%clk 0:01:11.6]} 18... Nf4 {[%clk 0:01:48.7]} 19. Bc2 {[%clk 0:01:01.7]}
19... Rf7 {[%clk 0:01:06.4]} 20. g3 {[%clk 0:00:54.5]} 20... Ne6 {[%clk
0:01:04.5]} 21. Nh2 {[%clk 0:00:33.7]} 21... Bd7 {[%clk 0:00:49.1]} 22. Ng4
{[%clk 0:00:32.4]} 22... Kh8 {[%clk 0:00:49.7]} 23. Nh6 {[%clk 0:00:30.9]} 23...
Rg7 {[%clk 0:00:44.8]} 24. Nf5 {[%clk 0:00:27.6]} 24... Rf7 {[%clk 0:00:41.8]}
25. Nh6 {[%clk 0:00:27.8]} 25... Rg7 {[%clk 0:00:38.1]} 26. Nf5 {[%clk
0:00:20.2]} 26... Rf7 {[%clk 0:00:22.2]} 27. Rd2 {[%clk 0:00:16.3]} 27... Bc6
{[%clk 0:00:12.5]} 28. Rhd1 {[%clk 0:00:16.3]} 28... Nf8 {[%clk 0:00:12.1]} 29.
Nh6 {[%clk 0:00:15.9]} 29... Rg7 {[%clk 0:00:12.4]} 30. Nf5 {[%clk 0:00:16.1]}
30... Rf7 {[%clk 0:00:12.5]} 31. Bb3 {[%clk 0:00:16.2]} 31... e6 {[%clk
0:00:12.1]} 32. Nd6 {[%clk 0:00:16.6]} 32... Rd7 {[%clk 0:00:11.6]} 33. h6
{[%clk 0:00:12.7]} 33... a5 {[%clk 0:00:09.5]} 34. Ba2 {[%clk 0:00:11.5]} 34...
Kg8 {[%clk 0:00:07.5]} 35. f4 {[%clk 0:00:09.5]} 35... Rad8 {[%clk 0:00:07.1]}
36. fxe5 {[%clk 0:00:10]} 36... Bd5 {[%clk 0:00:03.3]} 37. Rxd5 {[%clk
0:00:07.6]} 37... exd5 {[%clk 0:00:04.2]} 38. Rxd5 {[%clk 0:00:07.2]} 38... Kh8
{[%clk 0:00:04.8]} 39. Rc5 {[%clk 0:00:05.2]} 39... Qb6 {[%clk 0:00:03.3]} 40.
Qd4 {[%clk 0:00:05.6]} 40... Rxd6 {[%clk 0:00:02.5]} 41. exd6 {[%clk 0:00:05.6]}
1-0

[Event "Late-Titled-Tuesday-Blitz-April-30-2024"]
[Site "Chess.com"]
[Date "2024.04.30"]
[Round "9"]
[White "carloseduar100"]
[Black "WPWPWP-2015"]
[Result "0-1"]
[WhiteElo "2241"]
[BlackElo "2475"]
[TimeControl "180+1"]
[EndTime "15:44:27 PDT"]
[Termination "WPWPWP-2015 won by resignation"]

1. e4 {[%clk 0:02:57.7]} 1... e5 {[%clk 0:02:58.6]} 2. Nf3 {[%clk 0:02:57]} 2...
Nc6 {[%clk 0:02:58.7]} 3. Nc3 {[%clk 0:02:56.7]} 3... Nf6 {[%clk 0:02:58.2]} 4.
Nxe5 {[%clk 0:02:56.8]} 4... Nxe5 {[%clk 0:02:57.7]} 5. d4 {[%clk 0:02:57.7]}
5... Nc6 {[%clk 0:02:57.9]} 6. d5 {[%clk 0:02:57.9]} 6... Bb4 {[%clk 0:02:54.8]}
7. dxc6 {[%clk 0:02:57.1]} 7... dxc6 {[%clk 0:02:54.3]} 8. Qxd8+ {[%clk
0:02:55.5]} 8... Kxd8 {[%clk 0:02:55.2]} 9. Bd2 {[%clk 0:02:55.6]} 9... Bd7
{[%clk 0:02:52.9]} 10. O-O-O {[%clk 0:02:55.6]} 10... Kc8 {[%clk 0:02:53]} 11.
Bc4 {[%clk 0:02:55]} 11... Be6 {[%clk 0:02:49.6]} 12. Bxe6+ {[%clk 0:02:54.8]}
12... fxe6 {[%clk 0:02:50.5]} 13. f3 {[%clk 0:02:55]} 13... b6 {[%clk
0:02:50.2]} 14. Ne2 {[%clk 0:02:54.5]} 14... Bxd2+ {[%clk 0:02:45.9]} 15. Rxd2
{[%clk 0:02:55.4]} 15... e5 {[%clk 0:02:45.7]} 16. Rhd1 {[%clk 0:02:54.9]} 16...
Kb7 {[%clk 0:02:40.1]} 17. Ng3 {[%clk 0:02:47.4]} 17... g6 {[%clk 0:02:39.1]}
18. Nf1 {[%clk 0:02:48.1]} 18... a5 {[%clk 0:02:37.8]} 19. Ne3 {[%clk
0:02:48.6]} 19... b5 {[%clk 0:02:37.9]} 20. a3 {[%clk 0:02:47.9]} 20... a4
{[%clk 0:02:37.5]} 21. c4 {[%clk 0:02:44.7]} 21... Rae8 {[%clk 0:02:33.3]} 22.
Kc2 {[%clk 0:02:37.4]} 22... h5 {[%clk 0:02:30.6]} 23. Kc3 {[%clk 0:02:37.6]}
23... h4 {[%clk 0:02:30.4]} 24. h3 {[%clk 0:02:36.2]} 24... Nh5 {[%clk
0:02:28.3]} 25. Rd7 {[%clk 0:02:35.8]} 25... Nf4 {[%clk 0:02:26.4]} 26. Kb4
{[%clk 0:02:28.5]} 26... Kb6 {[%clk 0:02:16.8]} 27. c5+ {[%clk 0:02:12.7]} 27...
Kb7 {[%clk 0:02:14.9]} 28. R1d2 {[%clk 0:02:13]} 28... Ne6 {[%clk 0:02:09.7]}
29. Ng4 {[%clk 0:02:09.5]} 29... Nd4 {[%clk 0:01:52.4]} 30. Nxe5 {[%clk
0:01:49.3]} 30... Rxe5 {[%clk 0:01:52.2]} 31. R2xd4 {[%clk 0:01:48.5]} 31...
Rhh5 {[%clk 0:01:51.5]} 32. Rg7 {[%clk 0:01:43.1]} 32... Rxc5 {[%clk 0:01:49.3]}
33. Rxg6 {[%clk 0:01:39.2]} 33... Kb6 {[%clk 0:01:44]} 34. Rg8 {[%clk
0:00:53.1]} 34... Rc2 {[%clk 0:01:39.4]} 35. Rb8+ {[%clk 0:00:53.1]} 35... Ka7
{[%clk 0:01:39.1]} 36. Rdd8 {[%clk 0:00:53]} 36... Rxb2+ {[%clk 0:01:24.2]} 37.
Ka5 {[%clk 0:00:53.1]} 37... b4+ {[%clk 0:01:11.2]} 38. Kxa4 {[%clk 0:00:53.6]}
38... bxa3 {[%clk 0:01:06.6]} 39. Ra8+ {[%clk 0:00:53.3]} 39... Kb6 {[%clk
0:01:05.9]} 40. Kxa3 {[%clk 0:00:53]} 40... Rhb5 {[%clk 0:00:45.8]} 41. Rdb8+
{[%clk 0:00:45.7]} 41... Kc5 {[%clk 0:00:45.4]} 42. Rxb5+ {[%clk 0:00:46.3]}
42... Rxb5 {[%clk 0:00:45]} 43. Rh8 {[%clk 0:00:46.7]} 43... Kc4 {[%clk
0:00:42.2]} 44. Rxh4 {[%clk 0:00:46.3]} 44... Kc3 {[%clk 0:00:42.4]} 45. Ka2
{[%clk 0:00:29.1]} 45... Ra5+ {[%clk 0:00:38]} 46. Kb1 {[%clk 0:00:29.2]} 46...
Rb5+ {[%clk 0:00:38.3]} 47. Kc1 {[%clk 0:00:29.5]} 47... Ra5 {[%clk 0:00:38.9]}
48. Kd1 {[%clk 0:00:29.9]} 48... Kd3 {[%clk 0:00:38.9]} 49. Ke1 {[%clk
0:00:30.1]} 49... Ke3 {[%clk 0:00:38.6]} 50. Kd1 {[%clk 0:00:28.3]} 50... Kd3
{[%clk 0:00:38.8]} 51. Kc1 {[%clk 0:00:28.6]} 51... c5 {[%clk 0:00:33.8]} 52. e5
{[%clk 0:00:22.2]} 52... c4 {[%clk 0:00:34.2]} 53. e6 {[%clk 0:00:19.8]} 53...
c3 {[%clk 0:00:31.7]} 54. Kb1 {[%clk 0:00:18.5]} 54... c2+ {[%clk 0:00:29.6]}
55. Kb2 {[%clk 0:00:18.5]} 55... Rb5+ {[%clk 0:00:29.8]} 56. Ka2 {[%clk
0:00:18.8]} 56... c1=Q {[%clk 0:00:28.9]} 0-1

[Event "Late-Titled-Tuesday-Blitz-April-30-2024"]
[Site "Chess.com"]
[Date "2024.04.30"]
[Round "9"]
[White "GalaxyRoman"]
[Black "DeArron_Fox"]
[Result "0-1"]
[WhiteElo "2725"]
[BlackElo "2522"]
[TimeControl "180+1"]
[EndTime "15:44:28 PDT"]
[Termination "DeArron_Fox won by checkmate"]

1. e4 {[%clk 0:03:00.9]} 1... c5 {[%clk 0:02:56.4]} 2. Nc3 {[%clk 0:02:55]} 2...
e6 {[%clk 0:02:50.6]} 3. f4 {[%clk 0:02:55.9]} 3... d5 {[%clk 0:02:48.5]} 4. Nf3
{[%clk 0:02:56.8]} 4... Nc6 {[%clk 0:02:43]} 5. Bb5 {[%clk 0:02:56.5]} 5... Ne7
{[%clk 0:02:42.8]} 6. exd5 {[%clk 0:02:56.6]} 6... exd5 {[%clk 0:02:42.8]} 7.
Qe2 {[%clk 0:02:57.2]} 7... g6 {[%clk 0:02:41.9]} 8. Ne5 {[%clk 0:02:41.4]} 8...
Be6 {[%clk 0:02:07.3]} 9. Nd3 {[%clk 0:02:13.7]} 9... a6 {[%clk 0:01:25.2]} 10.
Qe5 {[%clk 0:01:43.9]} 10... Rg8 {[%clk 0:01:17.8]} 11. Nxc5 {[%clk 0:01:03.8]}
11... axb5 {[%clk 0:01:11.8]} 12. Nxe6 {[%clk 0:01:02.2]} 12... fxe6 {[%clk
0:01:00.5]} 13. Qxe6 {[%clk 0:01:03.1]} 13... Nd4 {[%clk 0:00:43.6]} 14. Qe5
{[%clk 0:00:53.6]} 14... Bg7 {[%clk 0:00:36.9]} 15. Qg5 {[%clk 0:00:49.1]} 15...
Nxc2+ {[%clk 0:00:36]} 16. Kd1 {[%clk 0:00:49.1]} 16... Nxa1 {[%clk 0:00:32.7]}
17. Re1 {[%clk 0:00:43.7]} 17... Kf7 {[%clk 0:00:26.1]} 18. Nxb5 {[%clk
0:00:37.3]} 18... Nf5 {[%clk 0:00:20.8]} 19. Qg4 {[%clk 0:00:22.9]} 19... Qd7
{[%clk 0:00:19.9]} 20. Nc3 {[%clk 0:00:16.2]} 20... Rge8 {[%clk 0:00:20.3]} 21.
Rxe8 {[%clk 0:00:16.2]} 21... Rxe8 {[%clk 0:00:21.2]} 22. b3 {[%clk 0:00:16.5]}
22... d4 {[%clk 0:00:19.4]} 23. Ne2 {[%clk 0:00:13.3]} 23... Qb5 {[%clk
0:00:19.3]} 24. Bb2 {[%clk 0:00:10.9]} 24... Nxb3 {[%clk 0:00:17.8]} 25. Qf3
{[%clk 0:00:05.8]} 25... Nc5 {[%clk 0:00:08.8]} 26. Bc1 {[%clk 0:00:03.4]} 26...
Qxe2+ {[%clk 0:00:07.7]} 27. Qxe2 {[%clk 0:00:03.6]} 27... Rxe2 {[%clk
0:00:08.6]} 28. Kxe2 {[%clk 0:00:04.5]} 28... d3+ {[%clk 0:00:09.3]} 29. Kf3
{[%clk 0:00:04.7]} 29... Nd4+ {[%clk 0:00:08.9]} 30. Ke3 {[%clk 0:00:04.7]}
30... Nc2+ {[%clk 0:00:08.9]} 31. Kf3 {[%clk 0:00:04.5]} 31... Ke6 {[%clk
0:00:09.5]} 32. g4 {[%clk 0:00:04.4]} 32... Kd5 {[%clk 0:00:09.8]} 33. a4 {[%clk
0:00:04.7]} 33... Nxa4 {[%clk 0:00:09.7]} 34. h4 {[%clk 0:00:02.4]} 34... b5
{[%clk 0:00:10]} 35. h5 {[%clk 0:00:02.7]} 35... gxh5 {[%clk 0:00:09.7]} 36. g5
{[%clk 0:00:02.6]} 36... b4 {[%clk 0:00:10.3]} 37. f5 {[%clk 0:00:03.2]} 37...
b3 {[%clk 0:00:10.1]} 38. f6 {[%clk 0:00:02.6]} 38... Bf8 {[%clk 0:00:09.9]} 39.
Kf4 {[%clk 0:00:02.6]} 39... b2 {[%clk 0:00:09.3]} 40. Bxb2 {[%clk 0:00:03.2]}
40... Nxb2 {[%clk 0:00:10.2]} 41. Kf5 {[%clk 0:00:04]} 41... Nc4 {[%clk
0:00:09]} 42. g6 {[%clk 0:00:04.3]} 42... hxg6+ {[%clk 0:00:09.9]} 43. Kxg6
{[%clk 0:00:05.1]} 43... Nxd2 {[%clk 0:00:09.7]} 44. Kf7 {[%clk 0:00:05.5]}
44... Ba3 {[%clk 0:00:09.8]} 45. Kg6 {[%clk 0:00:06]} 45... Ne4 {[%clk
0:00:10.4]} 46. f7 {[%clk 0:00:06.9]} 46... d2 {[%clk 0:00:10.9]} 47. Kg7 {[%clk
0:00:07.2]} 47... d1=Q {[%clk 0:00:10.5]} 48. Kg8 {[%clk 0:00:07.8]} 48... Qg4+
{[%clk 0:00:10.9]} 49. Kh7 {[%clk 0:00:07.7]} 49... Nf6+ {[%clk 0:00:11.2]} 50.
Kh6 {[%clk 0:00:07.7]} 50... Bc1# {[%clk 0:00:11.8]} 0-1

[Event "Late-Titled-Tuesday-Blitz-April-30-2024"]
[Site "Chess.com"]
[Date "2024.04.30"]
[Round "9"]
[White "GM_dmitrij"]
[Black "LyonBeast"]
[Result "1/2-1/2"]
[WhiteElo "2992"]
[BlackElo "3125"]
[TimeControl "180+1"]
[EndTime "15:44:32 PDT"]
[Termination "Game drawn by repetition"]

1. e4 {[%clk 0:02:12.6]} 1... c5 {[%clk 0:02:31.7]} 2. Nf3 {[%clk 0:02:11]} 2...
Nc6 {[%clk 0:02:31.5]} 3. Bb5 {[%clk 0:02:10.6]} 3... e6 {[%clk 0:02:31.1]} 4.
O-O {[%clk 0:02:10.2]} 4... Nge7 {[%clk 0:02:31.5]} 5. Re1 {[%clk 0:02:10.6]}
5... Ng6 {[%clk 0:02:30.8]} 6. c3 {[%clk 0:02:01.4]} 6... a6 {[%clk 0:02:30.9]}
7. Bf1 {[%clk 0:01:59.6]} 7... Be7 {[%clk 0:02:30.6]} 8. d4 {[%clk 0:01:58.5]}
8... cxd4 {[%clk 0:02:31.5]} 9. cxd4 {[%clk 0:01:59.4]} 9... d5 {[%clk 0:02:32]}
10. exd5 {[%clk 0:01:55.3]} 10... exd5 {[%clk 0:02:31.8]} 11. Bg5 {[%clk
0:01:55.4]} 11... O-O {[%clk 0:02:31.5]} 12. Bxe7 {[%clk 0:01:55.3]} 12... Ngxe7
{[%clk 0:02:32.4]} 13. Nc3 {[%clk 0:01:55.3]} 13... Bf5 {[%clk 0:02:32.3]} 14.
Rc1 {[%clk 0:01:52.9]} 14... Ng6 {[%clk 0:02:27.3]} 15. Qb3 {[%clk 0:01:37.7]}
15... Bg4 {[%clk 0:02:19.3]} 16. Qxb7 {[%clk 0:01:37.2]} 16... Bxf3 {[%clk
0:01:53.8]} 17. Qxc6 {[%clk 0:01:36.8]} 17... Qg5 {[%clk 0:01:51.7]} 18. Ne2
{[%clk 0:01:10.3]} 18... Bxe2 {[%clk 0:01:27.3]} 19. Bxe2 {[%clk 0:01:11.2]}
19... Nf4 {[%clk 0:01:26]} 20. g3 {[%clk 0:00:59.4]} 20... Rab8 {[%clk 0:01:16]}
21. b3 {[%clk 0:00:55]} 21... Rb4 {[%clk 0:01:13.1]} 22. Bf1 {[%clk 0:00:50.5]}
22... Rxd4 {[%clk 0:01:10.3]} 23. Qc5 {[%clk 0:00:50.9]} 23... Ne6 {[%clk
0:01:08.5]} 24. Qc3 {[%clk 0:00:37.9]} 24... Rd2 {[%clk 0:01:04.1]} 25. h4
{[%clk 0:00:23.7]} 25... Qh6 {[%clk 0:01:04.1]} 26. Rc2 {[%clk 0:00:21.5]} 26...
Rxc2 {[%clk 0:01:01.6]} 27. Qxc2 {[%clk 0:00:22.4]} 27... Qf6 {[%clk 0:00:57.3]}
28. Qd3 {[%clk 0:00:18.6]} 28... Rd8 {[%clk 0:00:50.5]} 29. Qxa6 {[%clk
0:00:15.2]} 29... Qc3 {[%clk 0:00:50.3]} 30. Re3 {[%clk 0:00:13.6]} 30... Qc1
{[%clk 0:00:50.4]} 31. Qd3 {[%clk 0:00:12.3]} 31... d4 {[%clk 0:00:48.4]} 32.
Re2 {[%clk 0:00:12.2]} 32... h6 {[%clk 0:00:40]} 33. Rc2 {[%clk 0:00:12.2]}
33... Qe1 {[%clk 0:00:39.6]} 34. Qd2 {[%clk 0:00:11.8]} 34... Qe5 {[%clk
0:00:37.2]} 35. b4 {[%clk 0:00:10.5]} 35... d3 {[%clk 0:00:36.7]} 36. Rc3 {[%clk
0:00:08]} 36... Nd4 {[%clk 0:00:35.1]} 37. Qxd3 {[%clk 0:00:07.3]} 37... Ne2+
{[%clk 0:00:35.6]} 38. Qxe2 {[%clk 0:00:06]} 38... Qxc3 {[%clk 0:00:35.6]} 39.
b5 {[%clk 0:00:06.9]} 39... Qc5 {[%clk 0:00:29.6]} 40. a4 {[%clk 0:00:06.9]}
40... Qb6 {[%clk 0:00:26.4]} 41. Qe1 {[%clk 0:00:06.3]} 41... Ra8 {[%clk
0:00:24.9]} 42. Qb4 {[%clk 0:00:06.2]} 42... h5 {[%clk 0:00:22.8]} 43. Bg2
{[%clk 0:00:05.7]} 43... Ra7 {[%clk 0:00:21]} 44. Bc6 {[%clk 0:00:05.9]} 44...
g6 {[%clk 0:00:21.1]} 45. Qc4 {[%clk 0:00:05.8]} 45... Qd8 {[%clk 0:00:19.9]}
46. Kg2 {[%clk 0:00:05.9]} 46... Qb6 {[%clk 0:00:18]} 47. Qb4 {[%clk 0:00:06.1]}
47... Kg7 {[%clk 0:00:17.8]} 48. Qc3+ {[%clk 0:00:06.1]} 48... Kg8 {[%clk
0:00:18.2]} 49. Qb4 {[%clk 0:00:07]} 49... Kg7 {[%clk 0:00:18.6]} 50. Qc3+
{[%clk 0:00:07.4]} 50... Kg8 {[%clk 0:00:19.1]} 51. Qc4 {[%clk 0:00:08.1]} 51...
Re7 {[%clk 0:00:18.2]} 52. Qf4 {[%clk 0:00:05.6]} 52... Re2 {[%clk 0:00:16.8]}
53. Bd5 {[%clk 0:00:05.9]} 53... Re7 {[%clk 0:00:15.3]} 54. Bc6 {[%clk 0:00:06]}
54... Re2 {[%clk 0:00:15.1]} 55. Bd5 {[%clk 0:00:06.5]} 55... Re7 {[%clk
0:00:15.3]} 56. Bc6 {[%clk 0:00:07.1]} 1/2-1/2

[Event "Late-Titled-Tuesday-Blitz-April-30-2024"]
[Site "Chess.com"]
[Date "2024.04.30"]
[Round "9"]
[White "BogdanDeac"]
[Black "Shankland"]
[Result "1-0"]
[WhiteElo "3091"]
[BlackElo "2967"]
[TimeControl "180+1"]
[EndTime "15:44:36 PDT"]
[Termination "BogdanDeac won by resignation"]

1. e4 {[%clk 0:03:00.9]} 1... c5 {[%clk 0:02:59.7]} 2. Nf3 {[%clk 0:03:01]} 2...
d6 {[%clk 0:03:00.3]} 3. h3 {[%clk 0:02:51.7]} 3... Nf6 {[%clk 0:02:58.1]} 4.
Nc3 {[%clk 0:02:51.4]} 4... Nc6 {[%clk 0:02:58.3]} 5. d4 {[%clk 0:02:50.9]} 5...
cxd4 {[%clk 0:02:57.9]} 6. Nxd4 {[%clk 0:02:51.8]} 6... g6 {[%clk 0:02:57.9]} 7.
Bc4 {[%clk 0:02:49.7]} 7... Bg7 {[%clk 0:02:57.1]} 8. O-O {[%clk 0:02:50.2]}
8... O-O {[%clk 0:02:57.2]} 9. Nf3 {[%clk 0:02:50.5]} 9... b6 {[%clk 0:02:53.2]}
10. Re1 {[%clk 0:02:47.3]} 10... Bb7 {[%clk 0:02:53.1]} 11. Bg5 {[%clk
0:02:45.5]} 11... h6 {[%clk 0:02:50.7]} 12. Be3 {[%clk 0:02:34.5]} 12... Rc8
{[%clk 0:02:49.7]} 13. Bf1 {[%clk 0:02:34.2]} 13... Na5 {[%clk 0:02:25.1]} 14.
Nd2 {[%clk 0:02:18.3]} 14... d5 {[%clk 0:02:07.1]} 15. exd5 {[%clk 0:02:14.9]}
15... Nxd5 {[%clk 0:02:06.8]} 16. Nxd5 {[%clk 0:02:15]} 16... Qxd5 {[%clk
0:02:06]} 17. c3 {[%clk 0:02:15.1]} 17... Rfd8 {[%clk 0:02:05.9]} 18. Qa4 {[%clk
0:01:56.5]} 18... Nc6 {[%clk 0:01:51.4]} 19. Nf3 {[%clk 0:01:45.3]} 19... Qa5
{[%clk 0:01:43]} 20. Qh4 {[%clk 0:01:34.2]} 20... Qh5 {[%clk 0:01:15.2]} 21.
Qxh5 {[%clk 0:01:18.9]} 21... gxh5 {[%clk 0:01:16.1]} 22. Rad1 {[%clk
0:01:16.6]} 22... e6 {[%clk 0:01:15.3]} 23. Be2 {[%clk 0:01:04.7]} 23... Ne7
{[%clk 0:01:11.6]} 24. Rxd8+ {[%clk 0:00:57]} 24... Rxd8 {[%clk 0:01:11.3]} 25.
Rd1 {[%clk 0:00:57.6]} 25... Rxd1+ {[%clk 0:00:52.5]} 26. Bxd1 {[%clk
0:00:57.5]} 26... e5 {[%clk 0:00:47.1]} 27. g3 {[%clk 0:00:22.7]} 27... Nf5
{[%clk 0:00:39.4]} 28. Bc1 {[%clk 0:00:21.3]} 28... e4 {[%clk 0:00:34.3]} 29.
Nh4 {[%clk 0:00:09.1]} 29... Nxh4 {[%clk 0:00:32.7]} 30. gxh4 {[%clk 0:00:10]}
30... Bf6 {[%clk 0:00:26.4]} 31. Bxh6 {[%clk 0:00:06]} 31... Bxh4 {[%clk
0:00:22]} 32. Bxh5 {[%clk 0:00:05.5]} 32... Kh7 {[%clk 0:00:20.5]} 33. Bf4
{[%clk 0:00:05]} 33... f5 {[%clk 0:00:20.8]} 34. Kf1 {[%clk 0:00:03.8]} 34...
Kg7 {[%clk 0:00:21]} 35. Be2 {[%clk 0:00:03.5]} 35... Kf6 {[%clk 0:00:20.5]} 36.
c4 {[%clk 0:00:03.4]} 36... Bg5 {[%clk 0:00:20.4]} 37. Bxg5+ {[%clk 0:00:03.2]}
37... Kxg5 {[%clk 0:00:21]} 38. b4 {[%clk 0:00:03.8]} 38... f4 {[%clk
0:00:21.3]} 39. Bg4 {[%clk 0:00:03.5]} 39... f3 {[%clk 0:00:20.6]} 40. Ke1
{[%clk 0:00:03.1]} 40... Kf4 {[%clk 0:00:20.6]} 41. c5 {[%clk 0:00:03.2]} 41...
bxc5 {[%clk 0:00:20.4]} 42. bxc5 {[%clk 0:00:04.1]} 42... Bc6 {[%clk 0:00:20.8]}
43. Be6 {[%clk 0:00:03.5]} 43... e3 {[%clk 0:00:20.1]} 44. h4 {[%clk 0:00:03.3]}
44... Ke5 {[%clk 0:00:18.6]} 45. Bf7 {[%clk 0:00:02.4]} 45... Kd4 {[%clk
0:00:18.1]} 46. h5 {[%clk 0:00:02]} 46... Kxc5 {[%clk 0:00:09.7]} 47. h6 {[%clk
0:00:01.9]} 47... exf2+ {[%clk 0:00:06.9]} 48. Kxf2 {[%clk 0:00:02.2]} 48... Be4
{[%clk 0:00:07.5]} 49. Bg8 {[%clk 0:00:02.8]} 49... Kb4 {[%clk 0:00:07.3]} 50.
h7 {[%clk 0:00:03.4]} 50... Bxh7 {[%clk 0:00:07.4]} 51. Bxh7 {[%clk 0:00:04.3]}
1-0